Cogmind - Beta 16.1 @@@ ROGUE MODE // 2026.03.26 @ 20:24:25 Player: Minty Result: Core destroyed Performance ------------- Evolutions (5) 2500 Regions Visited (12) 2400 Robots Destroyed (179) 895 Value Destroyed (8151) 8151 Prototype IDs (18) 360 Alien Tech Used (0) 0 Bonus (1867) 1867 TOTAL SCORE: 16173 Bonus ------- High Alert Combat Kills 482 Follower Combat Kills 569 Entered Garrisons 400 Used RIF Installer 500 Friendly Fire -84 Cogmind --------- Core Integrity 0/1000 Matter 226/300 Energy 100/100 System Corruption 2% Temperature Cool (0) Movement Core (50) Location -5/Factory Parts ------- > --- POWER (1) -------- (None) > --- PROPULSION (4) --- (None) > --- UTILITY (10) ----- (None) > --- WEAPON (2) ------- (None) > --- INVENTORY (5) ---- Authchip [R/Combat] Authchip [R/Combat] Authchip [R/Combat] Authchip [R/Combat] Relay Coupler [Swarmer] (33) Peak State ------------ > --- POWER ------------ Micro Antimatter Reactor > --- PROPULSION ------- Biometal Leg Biometal Leg Improved Thunder Leg Improved Thunder Leg > --- UTILITY ---------- Huge Storage Unit Enhanced Optical Array Advanced Targeting Computer Advanced Launcher Guidance Computer Improved Core Shielding Improved Light Armor Plating Relay Coupler [NC] Relay Coupler [Sentry] > --- WEAPON ----------- Cooled Particle Cannon Enhanced Force Lance > --- INVENTORY -------- Nuclear Core Particle Reactor Advanced Sensor Array Advanced Remote Force Field Authchip [R/Combat] Authchip [R/Combat] Authchip [R/Combat] Authchip [R/Combat] Authchip [R/Combat] Authchip [R/Combat] Authchip [R/Combat] Relay Coupler [NC] Relay Coupler [NC] Relay Coupler [Swarmer] Relay Coupler [Sentry] Relay Coupler [Sentry] Relay Coupler [Sentry] Relay Coupler [Hunter] Relay Coupler [Heavy] Heavy Ion Cannon Heavy Plasma Cannon Assault Cannon Linear Accelerator Remote Datajack Remote Datajack [Rating: 93] Favorites ----------- Power Light Nuclear Core Engine Improved Ion Engine Power Core Light Nuclear Core Reactor Micro Antimatter Reactor Propulsion Light Treads Treads Light Treads Leg Biometal Leg Wheel Compact Wheel Hover Unit Hover Unit Flight Unit VTOL Module Utility Relay Coupler [Sentry] Device Cooling System Storage Huge Storage Unit Processor Advanced Targeting Computer Hackware Relay Coupler [Sentry] Protection Improved Light Armor Plating Weapon Improved Medium Laser Energy Gun Improved Medium Laser Energy Cannon Cooled Particle Cannon Ballistic Gun Enhanced Autogun Ballistic Cannon Linear Accelerator Launcher Rocket Launcher Special Weapon Remote Datajack Piercing Weapon Enhanced Force Lance Special Melee Weapon Improved Datajack Build | -11 -10 -9 -9 -8 -8 -8 -7 -7 -7 -6 -6 -5 ------- Run | Yrd Mat Mat Sto Mat Gar Mat Fac Low Low Fac Gar Fac Slots Evolved 10 | . . 2 . 2 . . 2 . . 2 . 2 Power . | . . . . . . . . . . . . . Propulsion 2 | . . 2 . . . . . . . . . . Utility 8 | . . . . 2 . . 2 . . 2 . 2 Weapon . | . . . . . . . . . . . . . Parts Attached 196 | . 9 4 30 3 34 9 32 2 10 19 25 19 Power 21 | . . 1 1 . 6 2 2 1 1 5 1 1 Engine 8 | . . 1 1 . 1 2 2 1 . . . . Core 11 | . . . . . 5 . . . 1 5 . . Reactor 2 | . . . . . . . . . . . 1 1 Propulsion 67 | . 4 2 13 1 14 . 7 . 5 4 11 6 Treads 25 | . 2 . 1 . 13 . 1 . . 4 4 . Leg 19 | . . . 4 . 1 . 1 . . . 7 6 Wheel 1 | . . . . . . . 1 . . . . . Hover 13 | . . . 8 1 . . 4 . . . . . Flight 9 | . 2 2 . . . . . . 5 . . . Utility 62 | . 3 . 5 2 8 3 14 1 2 7 9 8 Device 11 | . . . 3 1 3 . 1 . . 2 . 1 Storage 6 | . . . 2 . 1 . . . . 1 1 1 Processor 10 | . 3 . . 1 . . 2 . . 2 1 1 Hackware 28 | . . . . . 3 2 10 . 2 1 5 5 Protection 7 | . . . . . 1 1 1 1 . 1 2 . Artifact . | . . . . . . . . . . . . . Weapon 46 | . 2 1 11 . 6 4 9 . 2 3 4 4 Energy Gun 20 | . 1 . 8 . 3 3 1 . 2 1 1 . Energy Cannon 5 | . . . 1 . . . 2 . . 1 1 . Ballistic Gun 5 | . 1 1 1 . . . 2 . . . . . Ballistic Cannon 4 | . . . . . . . 1 . . . 1 2 Launcher 5 | . . . . . 3 . 2 . . . . . Special Weapon 5 | . . . 1 . . 1 1 . . 1 . 1 Impact Weapon . | . . . . . . . . . . . . . Slashing Weapon . | . . . . . . . . . . . . . Piercing Weapon 1 | . . . . . . . . . . . 1 . Special Melee Weapon 1 | . . . . . . . . . . . . 1 Unidentified Prototypes 10 | . . . 4 . . 1 4 . . 1 . . Corrupted Parts 6 | . . . . . . . 4 . . . 2 . System Corruption 26 | . . . . . . . 17 . . . 9 . Parts Lost 99 | . 2 1 10 . 13 1 13 3 7 10 12 27 Power 13 | . 1 . 1 . 2 . 2 . 1 3 . 3 Propulsion 45 | . . 1 7 . 5 . 7 2 2 6 6 9 Utility 22 | . 1 . . . 2 1 3 1 1 1 3 9 Weapon 19 | . . . 2 . 4 . 1 . 3 . 3 6 Highest Loss Streak 11 | . 1 1 3 . 6 1 6 2 6 7 7 11 To Critical Strikes 1 | . . . . . . . . . . . 1 . Average Backups 13 | 6 4 3 8 9 13 19 16 5 3 6 21 22 Power . | 1 1 . . . . . . . . 1 1 1 Propulsion . | 4 1 . . . . . . . . . . . Utility 8 | . 1 2 2 2 8 16 12 3 1 1 12 15 Weapon 3 | 1 . . 4 5 2 1 2 2 1 2 4 3 Tool/Special . | . . . . . . . . . . . . . Unused Backups 37 | . 5 . 2 . 9 . 4 . . . 2 15 Power . | . . . . . . . . . . . . . Propulsion 3 | . 3 . . . . . . . . . . . Utility 28 | . . . 1 . 6 . 4 . . . 2 15 Weapon 3 | . 2 . 1 . . . . . . . . . Tool/Special 3 | . . . . . 3 . . . . . . . Average Slot Usage (%) 89 | . 94 92 95 90 93 96 83 88 83 95 86 79 Engine 4 | . 12 9 10 9 3 9 6 7 2 . . . Core 2 | . . . . . 4 . . . 1 5 1 . Treads 14 | . 17 . . . 28 36 12 . . 22 12 . Leg 4 | . 3 . 12 . 1 . 3 . . . 6 16 Hover 5 | . . . 23 36 3 . 5 21 3 . . . Flight 2 | . 6 38 3 . . . . . 22 1 . . Device 7 | . . . 10 9 14 8 5 5 . 6 5 . Storage 6 | . 2 . 10 9 9 9 5 . . 5 6 4 Processor 7 | . 23 22 1 9 . . 9 7 7 5 16 12 Hackware 14 | . . . . . 7 14 17 25 32 26 14 27 Protection 1 | . . . . . 1 . . 4 . 4 4 1 Energy Gun 9 | . 5 11 20 18 17 16 8 . 5 . 4 . Energy Cannon 2 | . . . . . . . 1 . 1 12 2 . Ballistic Gun 1 | . 22 11 . . . . 1 15 2 . . . Peak Build Rating 93 | 6 7 9 20 24 27 31 43 42 40 51 93 93 Average Rating 37 | 6 6 8 17 20 23 28 32 39 33 48 65 67 On Entrance 27 | 6 6 6 8 19 20 27 28 42 34 33 51 81 Avg Prop Armor Cover (%) 7 | . . . 4 . 4 . 12 . 7 9 8 . Naked Turns 35 | . . . . . . . . . . . . 35 Heaviest Build 108 | 13 13 9 25 25 56 62 64 16 17 108 108 108 Greatest Support 112 | 20 40 16 33 26 80 80 80 27 18 80 112 112 Greatest Overweight (x) 31 | . 2 . 4 . 3 . 3 . 1 1 5 31 Average Overweight (x) . | . . . . . . . . . . . 1 . Largest Inventory Capacity 25 | 8 8 5 10 10 20 20 20 5 5 25 25 25 Average Capacity 16 | 8 5 5 9 10 13 20 16 5 5 23 25 24 Most Carried 25 | 6 8 4 10 10 20 20 20 5 5 10 25 25 Average Carried 13 | 6 4 2 8 9 13 19 16 5 3 6 21 22 Final Capacity 25 | 8 5 5 10 10 20 20 5 5 5 25 25 5 Final Carried 25 | 6 5 4 10 10 20 20 5 5 4 10 25 5 Class Distribution -------------------- 48% | Bothacker-Mutant 22% | Mutant 18% | Scavenger-Mutant 4% | Scavenger-Sprinter 4% | Commander-Mutant Dominant Class ---------------- Mutant | -10/Materials Scavenger-Sprinter | -9/Materials Mutant | -9/Storage Commander-Mutant | -8/Materials Scavenger-Mutant | -8/Garrison Bothacker-Mutant | -8/Materials Bothacker-Mutant | -7/Factory Mutant | -7/Lower Caves Scavenger-Sprinter | -7/Lower Caves Scavenger-Mutant | -6/Factory Bothacker-Mutant | -6/Garrison Bothacker-Mutant | -5/Factory Resources | -11 -10 -9 -9 -8 -8 -8 -7 -7 -7 -6 -6 -5 ----------- Run | Yrd Mat Mat Sto Mat Gar Mat Fac Low Low Fac Gar Fac Matter Collected 4820 | 171 192 53 493 10 711 259 833 189 484 331 456 638 Remotely . | . . . . . . . . . . . . . Salvage Created 6975 | . 371 54 1501 10 1089 558 1092 217 406 501 587 589 Parts 344 | . 24 4 74 2 58 31 45 14 22 30 13 27 Haulers Intercepted 10 | . 1 . 6 . . 1 2 . . . . . Recyclers Shooed 8 | . 1 . 3 . . . 3 . . . . 1 Parts Field Recycled . | . . . . . . . . . . . . . Retrieved Matter . | . . . . . . . . . . . . . Parts Self-Destructed 36 | . . . . . . . . 14 22 . . . Prevented . | . . . . . . . . . . . . . Parts Restored . | . . . . . . . . . . . . . Kills | -11 -10 -9 -9 -8 -8 -8 -7 -7 -7 -6 -6 -5 ------- Run | Yrd Mat Mat Sto Mat Gar Mat Fac Low Low Fac Gar Fac Combat Hostiles Destroyed 137 | . 9 1 20 . 27 9 15 7 15 14 6 14 Melee 4 | . . . . . . 1 . . . 1 . 2 Guns 75 | . 8 1 18 . 19 7 7 7 6 . 2 . Cannons 30 | . . . . . . . 1 . 2 12 3 12 AOE 22 | . . . . . 7 1 7 . 7 . . . Classes Destroyed 18 | . 3 1 6 . 3 . 1 1 . 1 1 1 Worker 6 | . . . 5 . . . 1 . . . . . Builder 4 | . . . 1 . . 1 1 . . . . 1 Hauler 10 | . 1 . 6 . . 1 2 . . . . . Recycler 9 | . . . 2 . . 1 6 . . . . . Mechanic 1 | . . . . . . . 1 . . . . . Operator 6 | . . . 1 1 . 1 1 . . . . 2 Watcher 4 | . . . 1 . 1 1 . . . 1 . . Swarmer 39 | . 3 . 4 . 5 . 3 6 10 6 . 2 Cutter 2 | . . . . . 2 . . . . . . . Grunt 61 | . 6 . 10 . 9 7 10 . 3 1 6 9 Brawler 3 | . . . 1 . 1 . . . 1 . . . Duelist 1 | . . . . . 1 . . . . . . . Sentry 16 | . . 1 5 . 5 2 . . 1 2 . . Demolisher 2 | . . . . . . . . . . 2 . . Hunter 1 | . . . . . . . . . . . . 1 Programmer 12 | . . . . . 5 . 2 . . 3 . 2 Behemoth 1 | . . . . . . . . . . . 1 . Mutant 1 | . . . . . . . . 1 . . . . Best Kill Streak 7 | . 3 1 6 1 6 3 6 3 7 4 2 4 Combat Bots Only 7 | . 3 1 5 . 6 2 4 3 7 4 2 4 Max Kills in Single Turn 2 | . 2 1 2 1 2 2 2 2 2 2 1 1 Gunslinging 1 | . 1 . 1 . . . . . . . . . Exploded 2 | . . . . . 2 1 2 . 2 . . . Melee 1 | . . . . . . 1 . . . 1 . 1 Uniques/NPCs Destroyed . | . . . . . . . . . . . . . Combat | -11 -10 -9 -9 -8 -8 -8 -7 -7 -7 -6 -6 -5 -------- Run | Yrd Mat Mat Sto Mat Gar Mat Fac Low Low Fac Gar Fac Hostile Shots Fired 1293 | . 48 17 110 5 153 32 125 49 60 221 215 258 Missed 440 | . 16 7 35 1 45 9 42 17 26 85 80 77 Hits 853 | . 32 10 75 4 108 23 83 32 34 136 135 181 Melee 18 | . . . 2 . 6 . 6 . . . 4 . Projectile 835 | . 32 10 73 4 102 23 77 32 34 136 131 181 AOE 9 | . . . . . 3 . . . . 6 . . Critical Strikes 35 | . 2 . 1 . 8 1 7 . . 2 7 7 Damage Taken 14335 | . 429 128 995 44 2119 362 1675 503 549 1823 2255 3453 Core 2943 | . 77 22 155 14 378 31 415 97 140 260 348 1006 Absorbed by Shields 36 | . . . . . . . . . . . . 36 Redirected to Shielding 33 | . . . . . . . . 19 14 . . . Ignored by Resistances 240 | . . . . . . . . . . 28 212 . Regen/Repaired (Parts) 224 | . . . 10 . . 68 . . . 146 . . Core Remaining (%) 46 | 100 69 . 55 . . 23 . . 6 . 28 . Volleys Fired 575 | . 32 8 86 1 107 35 80 28 51 35 43 69 Largest 2 | . 2 2 2 2 2 2 2 2 2 2 2 2 Hottest 180 | . 70 70 112 112 112 160 141 50 170 180 155 101 Shots Fired 936 | . 64 16 167 2 198 59 112 56 61 63 66 72 Gun 668 | . 64 16 167 2 181 49 60 56 51 . 22 . Cannon 178 | . . . . . . . 20 . 5 60 35 58 Launcher 36 | . . . . . 17 . 14 . 5 . . . Special 54 | . . . . . . 10 18 . . 3 9 14 Kinetic 241 | . 48 8 . . . . 20 56 43 . 12 54 Thermal 571 | . 16 8 167 2 181 49 48 . 13 60 23 4 Explosive 32 | . . . . . 17 . 10 . 5 . . . Electromagnetic 38 | . . . . . . . 16 . . . 22 . Robot Hit Streak 24 | . 16 4 15 4 24 6 19 8 4 7 21 17 Robot Miss Streak 7 | . 4 1 4 . 7 5 4 4 6 5 1 2 Penetration Max . | . . . . . . . . . . . . . Secondary Targets 10 | . 2 . 3 . 1 1 . 1 2 . . . Max Gunslinging Chain 1 | . 1 . 1 . 1 1 . 1 1 . . . Shots Hit Robots 639 | . 48 11 117 1 123 42 68 29 17 39 72 72 Core Hits 291 | . 19 2 42 1 59 30 42 14 19 19 20 24 Critical Kills 1 | . . . . . . . . . . 1 . . Critical Parts Destroyed . | . . . . . . . . . . . . . Critical Strikes 33 | . 3 1 9 . 9 . 3 . 1 1 2 4 Burn 25 | . 3 1 9 . 9 . 2 . 1 . . . Meltdown 1 | . . . . . . . . . . 1 . . Blast 5 | . . . . . . . . . . . 2 3 Corrupt 1 | . . . . . . . 1 . . . . . Impale 1 | . . . . . . . . . . . . 1 Melee Attacks 56 | . . . . . . . . . . . 37 19 Impact . | . . . . . . . . . . . . . Slashing . | . . . . . . . . . . . . . Piercing 56 | . . . . . . . . . . . 37 19 Sneak Attacks 9 | . . . . . . . . . . . 1 8 Combat Hostiles 1 | . . . . . . . . . . . . 1 Follow-up Attacks . | . . . . . . . . . . . . . Damage Inflicted 17852 | . 510 147 2133 17 3210 758 2214 623 986 1325 2956 2973 Guns 7678 | . 510 147 2104 17 2023 747 865 623 265 . 377 . Cannons 4387 | . . . . . . . 290 . 108 1216 1001 1772 Explosions 2933 | . . . . . 1187 . 1028 . 613 58 47 . Melee 2723 | . . . . . . . . . . . 1531 1192 Ramming 131 | . . . 29 . . 11 31 . . 51 . 9 Kinetic 3569 | . 347 80 . . . . 189 623 229 . 435 1666 Thermal 8032 | . 163 67 2104 17 2023 747 832 . 144 1216 613 106 Explosive 2725 | . . . . . 1187 . 867 . 613 58 . . Electromagnetic 672 | . . . . . . . 295 . . . 377 . Impact . | . . . . . . . . . . . . . Slashing . | . . . . . . . . . . . . . Piercing 2723 | . . . . . . . . . . . 1531 1192 Highest Corruption 20 | . . . 1 . 4 4 20 20 20 . 14 2 Average Corruption 7 | . . . 1 . 3 4 7 20 20 . 8 1 Corruption Purged . | . . . . . . . . . . . . . Corruption Blocked . | . . . . . . . . . . . . . Effects 131 | . . . 4 . 34 10 20 12 28 . 19 4 Message Errors 29 | . . . 2 . 9 2 4 3 7 . 2 . Matter Fused 30 | . . . 1 . 10 2 5 2 5 . 5 . Heat Flow Errors 15 | . . . . . 2 1 2 3 4 . 2 1 Energy Discharges 22 | . . . . . 6 3 5 . 2 . 4 2 Parts Rejected 1 | . . . . . . . 1 . . . . . Parts Fused 2 | . . . . . . . . 1 1 . . . Data Loss (minor) 13 | . . . . . 2 1 2 1 3 . 4 . Data Loss (major) 5 | . . . . . 2 . . 2 1 . . . Misfires 4 | . . . . . 1 . . . 1 . 2 . Alerts 2 | . . . . . . . 1 . 1 . . . Weapon Failures 8 | . . . 1 . 2 1 . . 3 . . 1 Overload Shots 4 | . . . . . . . . . 2 2 . . Overflow Damage 575 | . . . 1 . 59 . 146 . 18 10 89 252 Projectiles 111 | . . . . . . . . . . 10 4 97 Explosions 223 | . . . . . 59 . 146 . 18 . . . Melee 241 | . . . 1 . . . . . . . 85 155 Knockbacks 22 | . . . 1 . . . 4 . . . 3 14 Impact 2 | . . . 1 . . . 1 . . . . . Kinetic 20 | . . . . . . . 3 . . . 3 14 Secondary . | . . . . . . . . . . . . . Self-Inflicted Damage 789 | . . . . . 381 . 266 . 87 54 . 1 Shots 23 | . . . . . 10 . 9 . 3 1 . . Rammed 17 | . 1 . . . 1 1 6 . . 7 . 1 Targets Rammed 24 | . 1 . 2 . 1 2 7 . . 8 . 3 Kicked 4 | . . . 2 . . . . . . . . 2 Crushed 3 | . . . . . . 1 1 . . 1 . . Highest Temperature 325 | . 97 112 105 . 213 325 211 115 225 108 253 161 Average Temperature 54 | . 27 56 19 . 73 58 48 70 67 22 75 56 Received Heat Transfer 4170 | . 246 63 249 27 540 207 414 . 36 195 922 1271 Effects 4 | . . . . . . 4 . . . . . . Interference 3 | . . . . . . 3 . . . . . . Short Circuit 1 | . . . . . . 1 . . . . . . Siege Activations . | . . . . . . . . . . . . . Martial Activations . | . . . . . . . . . . . . . Shielding Activations . | . . . . . . . . . . . . . Robots Disrupted . | . . . . . . . . . . . . . Combat Hostiles . | . . . . . . . . . . . . . Robots Corrupted 2 | . . . 1 . . . . . . . 1 . Combat Hostiles 1 | . . . . . . . . . . . 1 . Parts Fried 5 | . . . 2 . . . 1 . . . 2 . Impact Corruptions 1 | . . . 1 . . . . . . . . . Robots Melted 6 | . 1 . 2 . 2 . . . . 1 . . Combat Hostiles 5 | . 1 . 2 . 1 . . . . 1 . . Parts Melted 38 | . 3 . 13 . 11 2 2 . . 7 . . Heat Transferred 17380 | . 703 259 5217 37 4858 1647 1638 . 300 1740 833 148 Parts Sabotaged . | . . . . . . . . . . . . . Parts Stolen . | . . . . . . . . . . . . . Parts Stripped . | . . . . . . . . . . . . . Power Chain Reactions 4 | . . . . . . . 3 . . . 1 . Alert | -11 -10 -9 -9 -8 -8 -8 -7 -7 -7 -6 -6 -5 ------- Run | Yrd Mat Mat Sto Mat Gar Mat Fac Low Low Fac Gar Fac Maximum Alert Level 4 | . . . 1 . 4 3 2 . . 1 2 1 Low Security (%) 34 | 100 100 100 71 100 14 . . . . 97 7 40 Level 1 37 | . . . 28 . 15 . 87 . . 2 71 59 Level 2 10 | . . . . . 21 4 11 . . . 21 . Level 3 9 | . . . . . 16 95 . . . . . . Level 4 7 | . . . . . 32 . . . . . . . Level 5 . | . . . . . . . . . . . . . High Security . | . . . . . . . . . . . . . Max Security . | . . . . . . . . . . . . . Peak Influence 1548 | . 115 72 358 145 1548 771 430 . . 217 535 294 Initial 754 | . . 46 21 138 81 754 339 . . 160 98 275 Average 377 | . 53 52 155 134 769 732 290 . . 135 316 207 Influence Increases 6242 | . 242 36 871 7 1717 267 765 140 504 539 608 546 Destroy 0b10 Robot/C 3100 | . 180 20 460 . 700 180 380 120 320 280 140 320 Destroy 0b10 Robot/NC 230 | . 5 . 85 5 10 25 65 . . 5 10 20 Destroy Leader 506 | . 42 10 134 . 30 44 64 20 30 82 20 30 Allied During Kill 176 | . . . 82 2 50 . 19 . 4 . 7 12 Successful Hack 139 | . . 6 34 . 16 3 24 . . 28 28 . Disable Machine 195 | . . . 60 . . . 75 . . 45 . 15 Anti-Garrison Action 950 | . . . . . 650 . . . . . 300 . Destroy Structure 361 | . . . 1 . 171 . 78 . . 39 58 14 Lose Combat Pursuer 585 | . 15 . 15 . 90 15 60 . 150 60 45 135 Influence Decreases 6089 | . 130 96 595 210 294 1068 1182 283 436 653 223 919 Entered New Map 2081 | . . 66 31 190 44 794 408 123 36 95 43 251 Time Decay 2568 | . 120 20 464 20 . 254 514 130 270 458 . 318 Lost Part 980 | . 10 10 100 . 130 10 130 30 70 100 120 270 Lost Ally 460 | . . . . . 120 10 130 . 60 . 60 80 Squads Dispatched 30 | . 1 1 4 1 . 2 11 . . 4 . 6 Investigation 10 | . 1 . 3 . . 1 4 . . 1 . . Extermination 5 | . . . . . . . 1 . . 2 . 2 Reinforcement 14 | . . 1 1 1 . 1 6 . . . . 4 Assault . | . . . . . . . . . . . . . Garrison 1 | . . . . . . . . . . 1 . . Intercept . | . . . . . . . . . . . . . Searches Triggered . | . . . . . . . . . . . . . Construction Impeded 2 | . . . . . . . 1 . . . . 1 Haulers Reinforced 2 | . . . . . . . 2 . . . . . Active Scanning Responses . | . . . . . . . . . . . . . Cargo Convoy Interrupts . | . . . . . . . . . . . . . Stealth | -11 -10 -9 -9 -8 -8 -8 -7 -7 -7 -6 -6 -5 --------- Run | Yrd Mat Mat Sto Mat Gar Mat Fac Low Low Fac Gar Fac Distress Signals 15 | . 1 1 3 1 . 2 1 . . 4 . 2 Communications Jammed . | . . . . . . . . . . . . . Distress Signals . | . . . . . . . . . . . . . Times Spotted 264 | . 12 4 28 6 44 15 38 8 22 29 23 35 Peak Tracking Total 9 | . 4 3 4 5 8 6 5 3 4 7 6 9 Tactical Retreats 24 | . 1 . 1 . 6 1 2 . 4 3 3 3 Traps | -11 -10 -9 -9 -8 -8 -8 -7 -7 -7 -6 -6 -5 ------- Run | Yrd Mat Mat Sto Mat Gar Mat Fac Low Low Fac Gar Fac Traps Triggered 5 | . . . 1 . 2 . . . . . 1 1 Indirectly . | . . . . . . . . . . . . . Trap Hack Attempts . | . . . . . . . . . . . . . Triggered . | . . . . . . . . . . . . . Disarmed . | . . . . . . . . . . . . . Reprogrammed . | . . . . . . . . . . . . . Reused . | . . . . . . . . . . . . . Traps Extracted . | . . . . . . . . . . . . . Installed . | . . . . . . . . . . . . . Triggered . | . . . . . . . . . . . . . Machines | -11 -10 -9 -9 -8 -8 -8 -7 -7 -7 -6 -6 -5 ---------- Run | Yrd Mat Mat Sto Mat Gar Mat Fac Low Low Fac Gar Fac Machines Disabled 27 | . . . 4 . 8 . 5 2 . 3 4 1 Max in Single Turn 3 | . . . 1 . 2 . 2 1 . 3 1 1 Garrison Access 1 | . . . . . . 1 . . . . . . Garrison Relay 11 | . . . . . 8 . . . . . 3 . Machines Repaired . | . . . . . . . . . . . . . Machines Dismantled 4 | . . . 4 . . . . . . . . . Machines Sabotaged . | . . . . . . . . . . . . . Overloaded Fab Kills . | . . . . . . . . . . . . . Hacking | -11 -10 -9 -9 -8 -8 -8 -7 -7 -7 -6 -6 -5 --------- Run | Yrd Mat Mat Sto Mat Gar Mat Fac Low Low Fac Gar Fac Machines Accessed 40 | . 2 1 10 2 3 3 8 2 1 5 3 . Terminals 24 | . 2 1 9 1 3 1 3 . . 1 3 . Fabricators 3 | . . . . . . . 3 . . . . . Repair Stations 4 | . . . 1 . . 1 1 . . 1 . . Recycling Units 1 | . . . . . . . . . . 1 . . Scanalyzers 2 | . . . . . . . 1 . . 1 . . Garrison Access 3 | . . . . 1 . 1 . . . 1 . . Total Hacks 120 | . 5 5 34 5 7 6 31 8 1 12 6 . Successful 59 | . 2 1 15 2 3 3 14 8 1 8 2 . Failed 61 | . 3 4 19 3 4 3 17 . . 4 4 . Catastrophic 7 | . 1 1 2 . . . 2 . . . 1 . Database Lockouts . | . . . . . . . . . . . . . Manual 38 | . 2 5 13 2 2 . 13 . . . 1 . Terminals 73 | . 5 5 32 3 7 3 9 . . 3 6 . Fabricators 14 | . . . . . . . 14 . . . . . Repair Stations 9 | . . . 2 . . 2 3 . . 2 . . Recycling Units 2 | . . . . . . . . . . 2 . . Scanalyzers 9 | . . . . . . . 5 . . 4 . . Garrison Access 4 | . . . . 2 . 1 . . . 1 . . Terminal Hacks 30 | . 2 1 9 1 3 . 2 8 1 1 2 . Record 7 | . . . . . . . . 7 . . . . Robot Schematic 1 | . . . 1 . . . . . . . . . Robot Analysis 1 | . 1 . . . . . . . . . . . Prototype ID Bank 1 | . . . . . . . . . . 1 . . Open Door 5 | . . . 2 . 1 . . 1 1 . . . Emergency Access Points 3 | . . . 1 . 1 . . . . . 1 . Terminal Index 1 | . . . 1 . . . . . . . . . Garrison Index 1 | . . . 1 . . . . . . . . . Locate Traps 1 | . . . . 1 . . . . . . . . Surveillance Status 1 | . . . . . . . 1 . . . . . Hauler Manifests 1 | . . . 1 . . . . . . . . . Zone Layout 5 | . 1 1 2 . . . 1 . . . . . Patrol Navigation 1 | . . . . . . . . . . . 1 . Security Stations 1 | . . . . . 1 . . . . . . . Fabricator Hacks 4 | . . . . . . . 4 . . . . . Network Status 2 | . . . . . . . 2 . . . . . Load Schematic 1 | . . . . . . . 1 . . . . . Build 1 | . . . . . . . 1 . . . . . Repair Station Hacks 7 | . . . 2 . . 2 1 . . 2 . . Scan Component 4 | . . . 1 . . 1 1 . . 1 . . Repair 3 | . . . 1 . . 1 . . . 1 . . Recycling Unit Hacks 1 | . . . . . . . . . . 1 . . Report Inventory 1 | . . . . . . . . . . 1 . . Scanalyzer 6 | . . . . . . . 3 . . 3 . . Retrieve Study 6 | . . . . . . . 3 . . 3 . . Garrison Access Hacks 3 | . . . . 1 . 1 . . . 1 . . Unlock Access 2 | . . . . 1 . . . . . 1 . . Seal Access 1 | . . . . . . 1 . . . . . . Unauthorized Hacks 8 | . . . 4 . . . 4 . . . . . Terminals 5 | . . . 4 . . . 1 . . . . . Botnet 5 | . . . 4 . . . 1 . . . . . Fabricators 3 | . . . . . . . 3 . . . . . Prioritize 1 | . . . . . . . 1 . . . . . Liberate 1 | . . . . . . . 1 . . . . . Haulers 1 | . . . . . . . 1 . . . . . Repair Stations . | . . . . . . . . . . . . . Recycling Units . | . . . . . . . . . . . . . Scanalyzers . | . . . . . . . . . . . . . Garrison Access . | . . . . . . . . . . . . . Data Cores Recovered 1 | . . . . 1 . . . . . . . . Used . | . . . . . . . . . . . . . Hacking Detections 34 | . 2 1 9 1 3 2 8 . . 5 3 . Full Trace Events 14 | . 1 1 4 . 1 1 4 . . 1 1 . Feedback Events 3 | . . . 1 . . . 2 . . . . . Corruption 2 | . . . 1 . . . 1 . . . . . Hackware Fried 1 | . . . . . . . 1 . . . . . Feedback Blocked . | . . . . . . . . . . . . . Robot Schematics Acquired 1 | . . . 1 . . . . . . . . . Robots Built 3 | . . . . . . . 3 . . . . . Authchips 1 | . . . . . . . 1 . . . . . Time 99 | . . . . . . . 99 . . . . . Total Robot Build Rating 6 | . . . . . . . 6 . . . . . Part Schematics Acquired . | . . . . . . . . . . . . . Parts Built . | . . . . . . . . . . . . . Authchips . | . . . . . . . . . . . . . Time . | . . . . . . . . . . . . . Total Part Build Rating . | . . . . . . . . . . . . . Part Studies Acquired 6 | . . . . . . . 3 . . 3 . . Parts Repaired 3 | . . . 1 . . 1 . . . 1 . . Time 114 | . . . 32 . . 32 . . . 50 . . Parts Recycled . | . . . . . . . . . . . . . Recycled Matter . | . . . . . . . . . . . . . Retrieved Matter . | . . . . . . . . . . . . . Retrieved Components . | . . . . . . . . . . . . . Parts Scanalyzed . | . . . . . . . . . . . . . Part Schematics Acquired . | . . . . . . . . . . . . . Parts Damaged . | . . . . . . . . . . . . . Bothacking | -11 -10 -9 -9 -8 -8 -8 -7 -7 -7 -6 -6 -5 ------------ Run | Yrd Mat Mat Sto Mat Gar Mat Fac Low Low Fac Gar Fac Used RIF Installer 1 | . . . . . 1 . . . . . . . Robots Hacked 33 | . . . . . . 6 9 . . 2 7 9 Non-combat 10 | . . . . . . 3 5 . . . . 2 Combat 23 | . . . . . . 3 4 . . 2 7 7 Robot Hacks Applied 38 | . . . . . . 6 10 . . 2 7 13 parse_system 1 | . . . . . . . . . . . . 1 map_earth 1 | . . . . . . . . . . . . 1 find_dsf 1 | . . . . . . . 1 . . . . . drop_inventory 3 | . . . . . . 2 1 . . . . . ignore_parts 1 | . . . . . . . 1 . . . . . disrupt_area 1 | . . . . . . . . . . . . 1 amplify_resonance 13 | . . . . . . 2 4 . . 1 3 3 wipe_record 2 | . . . . . . . . . . . . 2 reboot_system 1 | . . . . . . . . . . . . 1 overwrite_iff 6 | . . . . . . 1 1 . . 1 2 1 formatsys_low 3 | . . . . . . 1 2 . . . . . formatsys_high 5 | . . . . . . . . . . . 2 3 Relay Couplers Released 47 | . . . . . 34 . . . . . 13 . Machine Destruction 47 | . . . . . 34 . . . . . 13 . Attached 20 | . . . . . 3 1 6 . 2 1 5 2 Fabnet Peak Effective % . | . . . . . . . . . . . . . Robots Rewired 9 | . . . . . 5 . . 3 . . 1 . Allies Hacked 2 | . . . . . . . . . . . . 2 Hacks Repelled . | . . . . . . . . . . . . . Allies | -11 -10 -9 -9 -8 -8 -8 -7 -7 -7 -6 -6 -5 -------- Run | Yrd Mat Mat Sto Mat Gar Mat Fac Low Low Fac Gar Fac Total Allies 41 | . . . 10 . 7 2 9 3 . 1 5 4 Largest Group 10 | . . . 10 9 5 1 3 3 3 1 2 2 Highest-Rated Group 166 | . . . 88 80 81 16 58 90 90 12 166 92 Highest-Rated Ally 141 | . . . 16 16 25 16 26 30 30 12 141 49 Total Orders 5 | . . . . . 4 1 . . . . . . AID 1 | . . . . . . 1 . . . . . . EXPLORE 2 | . . . . . 2 . . . . . . . RETURN 2 | . . . . . 2 . . . . . . . Ally Attacks 116 | . . . 19 3 31 . 35 . 2 1 5 20 Total Damage 2137 | . . . 147 23 791 . 500 . 42 . 63 571 Kills 21 | . . . 3 . 8 . 5 . 1 . 1 3 Allies Corrupted 4 | . . . . . 1 . . . . . 1 2 Allies Melted . | . . . . . . . . . . . . . Intel | -11 -10 -9 -9 -8 -8 -8 -7 -7 -7 -6 -6 -5 ------- Run | Yrd Mat Mat Sto Mat Gar Mat Fac Low Low Fac Gar Fac Active Infowar (turns) 4536 | . . . . . . . 1285 264 582 210 1529 666 Optics 4536 | . . . . . . . 1285 264 582 210 1529 666 Robot Analysis Total 1 | . 1 . . . . . . . . . . . Derelict Logs Recovered 1 | . . . . . . . . . 1 . . . Drone Launches 3 | . . . . . 3 . . . . . . . Drone Recoveries 3 | . . . . . 3 . . . . . . . Exploration | -11 -10 -9 -9 -8 -8 -8 -7 -7 -7 -6 -6 -5 ------------- Run | Yrd Mat Mat Sto Mat Gar Mat Fac Low Low Fac Gar Fac Turns Passed 9815 | 5 310 51 1169 47 2052 555 1409 264 582 1141 1529 701 Spaces Moved 6335 | 5 166 67 946 80 998 234 862 371 1263 471 555 317 Core 92 | . . . . . 13 . 7 . . . . 72 Treads 2180 | . 82 . . . 840 234 370 . . 369 285 . Legs 777 | 5 24 . 217 . 16 . . . . . 270 245 Wheels 67 | . . . . . . . 67 . . . . . Hover 1720 | . . . 690 80 129 . 418 371 22 10 . . Flight 1499 | . 60 67 39 . . . . . 1241 92 . . Fastest Speed 26 | 120 37 31 34 48 48 160 40 42 26 26 115 50 Average Speed 109 | 120 114 31 67 48 153 160 123 42 29 186 215 142 Slowest Speed 1600 | 120 200 34 330 48 260 160 400 46 109 247 560 1600 Overloaded Moves . | . . . . . . . . . . . . . Propulsion Burnouts . | . . . . . . . . . . . . . Robots Hopped 5 | . 1 1 . . . . . . 2 1 . . Potential Cave-ins . | . . . . . . . . . . . . . Cave-ins Triggered . | . . . . . . . . . . . . . Exploration Rate (%) 40 | 1 28 14 94 17 80 27 17 51 95 16 77 11 Regions Visited 12 Branch Regions 3 Pre-discovered Areas 1 | . . . . . . . . 1 . . . . Known Exits Taken 2 | . . . . 1 . . . . . 1 . . Unknown Exits Taken 8 | 1 1 1 1 . . 1 1 1 1 . . . Scrap Searched 5 | . . . . . . . . 4 1 . . . Spaces Dug 16 | . . . . . 6 . 7 . . . 3 . Terrain Destroyed 318 | . . . . . 92 . 83 . 82 47 9 5 Melee 3 | . . . . . . . . . . . 3 . Projectile 19 | . . . . . . . 2 . 1 9 2 5 AOE 296 | . . . . . 92 . 81 . 81 38 4 . Terrain Rammed . | . . . . . . . . . . . . . Walls Destroyed . | . . . . . . . . . . . . . Machines Disabled . | . . . . . . . . . . . . . Actions | -11 -10 -9 -9 -8 -8 -8 -7 -7 -7 -6 -6 -5 --------- Run | Yrd Mat Mat Sto Mat Gar Mat Fac Low Low Fac Gar Fac Total 8114 | 4 227 78 1249 87 1326 345 1087 443 1415 657 745 451 Wait 538 | . 3 . 106 . 76 52 72 26 77 96 29 1 Move 6315 | 4 163 64 945 80 997 233 861 370 1258 469 554 317 Hop 5 | . 1 1 . . . . . . 2 1 . . Pick Up 102 | . 6 1 14 1 32 1 5 . 1 16 24 1 Fast Attach 100 | . 4 . 13 . 15 3 22 . 7 9 16 11 Attach 59 | . 3 3 8 2 8 . 4 . 6 9 7 9 Detach 33 | . 3 . 4 1 3 . 6 . 5 3 5 3 Swap 147 | . 2 1 29 1 31 14 25 2 7 7 16 12 Drop 87 | . 9 . 16 1 34 4 4 1 1 4 11 2 Fire 575 | . 32 8 86 1 107 35 80 28 51 35 43 69 Melee 56 | . . . . . . . . . . . 37 19 Ram 6 | . . . . . . . 6 . . . . . Kick 4 | . . . 2 . . . . . . . . 2 Crush 13 | . 1 . . . 1 2 1 . . 8 . . Escape Stasis 6 | . . . . . . . . . . . 3 3 Rewire 42 | . . . . . 22 1 1 16 . . . 2 Trap . | . . . . . . . . . . . . . Miscellaneous 26 | . . . 26 . . . . . . . . . Route ------- -11/Scrapyard -10/Materials -9/Materials -9/Storage -8/Materials -8/Garrison (discovered 3 exits: *Mat x3) -8/Materials -7/Factory -7/Lower Caves -7/Lower Caves (discovered 2 exits: *Fac / [*Zio]) -6/Factory -6/Garrison (discovered 2 exits: [*Fac x2]) -5/Factory History --------- Turn | Location | Event 1 | -11/Scrapyard | Discovered new exit (range 1) 6 | -11/Scrapyard | Entered Materials 298 | -10/Materials | Discovered new exit (range 12) 312 | -10/Materials | Build established: Mutant 316 | -10/Materials | Entered another Materials area 316 | -9/Materials | Evolved 2 slots: Propulsion x2 345 | -9/Materials | Discovered new exit (range 11) 367 | -9/Materials | Entered Storage 1156 | -9/Storage | Assisted by bots powering up and referring to "LRC-V3" 1258 | -9/Storage | Discovered new exit (range 16) 1275 | -9/Storage | Lost 3 parts (3n) 1420 | -9/Storage | Build established: Commander-Mutant 1449 | -9/Storage | Repaired Imp. Hover Unit 1536 | -9/Storage | Entered Materials 1536 | -8/Materials | Accompanied by 9 allies 1536 | -8/Materials | Evolved 2 slots: Utility x2 1583 | -8/Materials | Identified exit to Garrison 1583 | -8/Materials | Entered Garrison 1627 | -8/Garrison | Triggered checkpoint 1827 | -8/Garrison | Installed Relay Interface Framework 1877 | -8/Garrison | Lost 6 parts (1p2n1u2w) 2123 | -8/Garrison | Triggered checkpoint 2123 | -8/Garrison | Triggered checkpoint 2208 | -8/Garrison | Discovered new exit (range 48) 2211 | -8/Garrison | Build established: Scavenger-Mutant 2295 | -8/Garrison | Triggered checkpoint 2302 | -8/Garrison | Core integrity fell below 50% 2345 | -8/Garrison | Garrison Relay disabled 2519 | -8/Garrison | Triggered checkpoint 2612 | -8/Garrison | Learned Materials security intel 2648 | -8/Garrison | Discovered new exit (range 8) 2679 | -8/Garrison | Triggered checkpoint 2725 | -8/Garrison | Triggered checkpoint 2725 | -8/Garrison | Rescued a captive Derelict 2726 | -8/Garrison | Rescued a captive Derelict 2826 | -8/Garrison | Garrison Relay disabled 2933 | -8/Garrison | Garrison Relay disabled 3024 | -8/Garrison | Lost 3 allies 3054 | -8/Garrison | Garrison Relay disabled 3054 | -8/Garrison | Garrison Relay disabled 3126 | -8/Garrison | Garrison Relay disabled 3195 | -8/Garrison | Garrison Relay disabled 3234 | -8/Garrison | Build established: Bothacker-Mutant 3534 | -8/Garrison | Garrison Relay disabled 3601 | -8/Garrison | Discovered new exit (range 10) 3635 | -8/Garrison | Entered Materials 3854 | -8/Materials | Repaired Cooling System 4057 | -8/Materials | Discovered new exit (range 7) 4190 | -8/Materials | Entered Factory 4190 | -7/Factory | Evolved 2 slots: Utility x2 5110 | -7/Factory | Lost 3 allies 5180 | -7/Factory | Hacking Suite fried by hacking feedback 5302 | -7/Factory | System corruption reached 10% 5318 | -7/Factory | Lost 6 parts (1p3n1u1w) 5322 | -7/Factory | Core integrity fell below 50% 5383 | -7/Factory | Fabricated B-36 Bruiser? 5550 | -7/Factory | Build established: Mutant 5590 | -7/Factory | Discovered new exit (range 9) 5599 | -7/Factory | Entered Lower Caves 5720 | -7/Lower Caves | Entered an active Warlord outpost 5725 | -7/Lower Caves | Learned location of Armory (-4) 5725 | -7/Lower Caves | Learned Research garrison access intel 5771 | -7/Lower Caves | Discovered new exit (range 10) 5780 | -7/Lower Caves | Attacked by a delusional Derelict stockpiling Unaware 5863 | -7/Lower Caves | Entered another Lower Caves area 5863 | -7/Lower Caves | Accompanied by 3 allies 5884 | -7/Lower Caves | Core integrity fell below 20% 5902 | -7/Lower Caves | Lost 3 allies 5995 | -7/Lower Caves | Learned Factory emergency access door positions 6025 | -7/Lower Caves | Attracted the attention of an 0b10 checkpoint 6064 | -7/Lower Caves | Destroyed 7 combat bots 6165 | -7/Lower Caves | Lost 6 parts (1p2n1u2w) 6207 | -7/Lower Caves | Encountered a Warlord checkpoint 6211 | -7/Lower Caves | Discovered new exit (range 17) 6444 | -7/Lower Caves | Discovered new exit (range 4) 6445 | -7/Lower Caves | Entered Factory 6445 | -6/Factory | Evolved 2 slots: Utility x2 6545 | -6/Factory | Lost 7 parts (2p5n) 6746 | -6/Factory | Build established: Scavenger-Mutant 7160 | -6/Factory | Repaired Hvy. Plasma Cannon+ 7219 | -6/Factory | Build established: Bothacker-Mutant 7330 | -6/Factory | P-60 Hacker assimilated allied S-27 Virus 7407 | -6/Factory | Garrison activated, responded to threat 7586 | -6/Factory | Identified exit to Garrison 7586 | -6/Factory | Entered Garrison 7671 | -6/Garrison | Spotted Executioner 7680 | -6/Garrison | Spotted Executioner 7730 | -6/Garrison | Build established: Mutant 7734 | -6/Garrison | Garrison Relay disabled 7988 | -6/Garrison | Triggered checkpoint 7991 | -6/Garrison | Spotted B-75 Beast 8033 | -6/Garrison | Destroyed B-75 Beast 8053 | -6/Garrison | Core integrity fell below 50% 8083 | -6/Garrison | Build established: Bothacker-Mutant 8089 | -6/Garrison | Lost 3 parts (2n1u) 8202 | -6/Garrison | Discovered new exit (range 11) 8366 | -6/Garrison | Triggered checkpoint 8434 | -6/Garrison | Lost 7 parts (3n2u2w) 8577 | -6/Garrison | Garrison Relay disabled 8850 | -6/Garrison | System corruption reached 10% 8991 | -6/Garrison | Garrison Relay disabled 9032 | -6/Garrison | Triggered checkpoint 9038 | -6/Garrison | Spotted B-86 Titan 9040 | -6/Garrison | Spotted B-86 Titan 9041 | -6/Garrison | Rewired B-90 Cyclops 9056 | -6/Garrison | Discovered new exit (range 10) 9115 | -6/Garrison | Entered Factory 9115 | -5/Factory | Accompanied by 1 ally 9115 | -5/Factory | Evolved 2 slots: Utility x2 9356 | -5/Factory | Lost 3 parts (2n1u) 9584 | -5/Factory | Lost 5 parts (1p2n1u1w) 9606 | -5/Factory | Lost 3 allies 9664 | -5/Factory | Core integrity fell below 50% 9688 | -5/Factory | Lost 11 parts (2p3n4u2w) 9768 | -5/Factory | Core integrity fell below 20% 9781 | -5/Factory | Released all parts (3) 9812 | -5/Factory | Lost 8 parts (2n3u3w) 9816 | -5/Factory | Core destroyed Last Messages --------------- 09759_ Acquired 40 matter. 09766_ Relay Coupler [NC] destroyed. 09768_ Adv. Targeting Computer destroyed. 09773_ R-10 Processor collects Wheel. 09775_ Critical hit (Burn: +37). 09780_ Hvy. Ion Cannon destroyed. 09781_ Enh. Optical Array destroyed. 09781_ Released System Shield. 09781_ Released Hacking Suite. 09781_ Released Huge Storage Unit. 09781_ Acquired 3 matter. 09787_ Acquired 90 matter. 09788_ Acquired 20 matter. 09789_ Acquired 2 matter. 09790_ Acquired 14 matter. 09791_ Acquired 30 matter. 09808_ ALERT: Potential suspicious activity detected, Programmers report to Factory Zone 5Q. 09816_ Slammed into K-01 Serf. 09816_ Destabilizing: Core damaged (-40). Map ----- +----------------------------------------------------+ | ^^##################????????????????????????????? | | #?????????########????????????????????????????? | | #?????????#######?????????????????????????????? | | #?????????#######?????????????????????????????? | | #?????????#######?????????????????????????????? | | #?????????????????????????????????????????????? | | +?????????????????????????????????????????????? | | #?????????????????????????????????????????????? | | #?????????????????????????????????????????????? | | #???????????????????? ??????????????????????? | | #???????????????????# #?????????????????????? | | #???????????????????# #?????????????????????? | | #########???????????# #?????????????????????? | | #########???????????#t #?????????????????????? | | #########???????????# #?????????????????????? | | #########???????????# #?????????????????????? | | #########???????????# #?????????????????????? | | #########???????????# #?????????????????????? | | #########???????????# #?????????????????????? | | #########???????????# ##????????????????????? | | #???????????????????# #?????????????????????? | | #???????????????????# #?????????????????????? | | ##################### #?????????????????????? | | k #?????????????????????? | | #?????????????????????? | | u R @ #?????????????????????? | | ######+##################k##?????????????????????? | | ???? ???????????????# #??????????????????????? | | ?? ?????????????# #??????????????????????? | | # ???????????# #??????????????????????? | | # #??????????# #??????????????????????? | | # """"""""" #??????????#k#??????????????????????? | | # """"""""" #??????????# #??????????????????????? | | # """"""""" #??????????# #??????????????????????? | | # """"""""" #??????????? ???????????????????????? | | ?????????????#??????????? ???????????????????????? | | ????????????????????????? ???????????????????????? | | ????????????????????????? ???????????????????????? | | ????????????????????????? ???????????????????????? | | ????????????????????????? ???????????????????????? | | ????????????????????????? ???????????????????????? | | ?????????????????????????????????????????????????? | | ?????????????????????????????????????????????????? | | ?????????????????????????????????????????????????? | | ?????????????????????????????????????????????????? | | ?????????????????????????????????????????????????? | | ?????????????????????????????????????????????????? | | ?????????????????????????????????????????????????? | | ?????????????????????????????????????????????????? | | ?????????????????????????????????????????????????? | +----------------------------------------------------+ Best States ------------- Heat Dissipation 67 Energy Generation 23 Energy Capacity 340 Matter Stores 300 Matter Capacity 300 Sight Range 22 Terrain Scan Density 10 Armor Coverage 150 Resistance: TH 20 Core Shielding 30 Propulsion Shielding 33 Evasion (%) 70 Targeting Accuracy 13 Launcher Accuracy 40 Target Analysis 5 Recoil Reduction 4 Energy Filtering 30 Offensive Hacking 20 Defensive Hacking 10 Relay Coupler Types 4 Relay Coupler Value 107 Authchip Count 7 Item Schematics ----------------- None Robot Schematics ------------------ W-16 Scout | -9/Storage | Hacked Fabricated ------------ B-36 Bruiser | x3 | -7/Factory | Preloaded, Authchip Repaired ---------- Imp. Hover Unit | 71% | -9/Storage Cooling System | 38% | -8/Materials Hvy. Plasma Cannon | 8% | -6/Factory Studied --------- Rocket Launcher | -7/Factory | Hacked Gatling Laser | -7/Factory | Hacked Remote Datajack | -7/Factory | Hacked Hvy. Plasma Cannon | -6/Factory | Hacked Arm. Treads | -6/Factory | Hacked Lgt. Nuclear Core | -6/Factory | Hacked Alien Tech Used ----------------- None Achievements -------------- None Challenges ------------ None Game ------ Seed PlatingMissileScreen Manual? 0 Play Time 01:08:39 Cumulative 1287.7 hours Start 2026.03.26 @ 18:15:38 End 2026.03.26 @ 20:24:25 Sessions 5 Manual Loads 0 Difficulty Rogue Special Mode None Game No. 1580 Rogue 1296 Adventurer 124 Explorer 160 Win Type - Total 63 Types 49/0/8/4/1/0/0/1/0/0 Lore% 93 Gallery% 83 Achievement% 70 Wizard Run 0 Options --------- Layout 0 ASCII 0 Keyboard 1 Movement Numpad Keybinds 0 Fullscreen 2 Font 18/X11 Map View 76x50 Zoom Use 0% Tactical HUD 1 Map Filters NONE Filters NONE Steam 1 RUN: b9e0011f-ba3b-4d7b-adba-0eab31b593ca